bitfinex/quotes_SOLUSD_20250226
["timestamp","ask_amount","ask_price","bid_price","bid_amount"]
[1740605673739,1.0,134.74,134.71,0.9036543]
[1740605674033,1.0,134.72,134.71,0.9036543]
[1740605674209,1.0,134.75,134.71,0.9336543]
[1740605674398,82.9,134.78,134.71,0.9336543]
[1740605674399,1.0,134.78,134.71,0.9336543]
[1740605674605,11.2,134.82,134.72,1.525]
[1740605674837,1.0,134.83,134.74,18.64964886]
[1740605675012,1.0,134.88,134.76,18.64964886]
[1740605675213,93.16,134.93,134.78,0.28432314]
[1740605675214,1.0,134.91,134.78,0.28432314]
[1740605675432,1.0,134.93,134.8,18.64964886]
[1740605675718,1.0,134.9,134.81,10.26]
[1740605676025,1.0,134.94,134.82,18.64964886]
[1740605676225,1.0,134.92,134.83,1.55639804]
[1740605676437,1.0,134.92,134.82,218.09300039]
[1740605676438,7.97126596,134.85,134.82,218.09300039]
[1740605676615,7.97126596,134.85,134.82,82.4]
[1740605677005,7.97126596,134.85,134.77,353.51300039]
[1740605677224,7.97126596,134.85,134.79,18.64964886]
[1740605677525,7.97126596,134.85,134.78,137.24990212]
[1740605677730,7.97126596,134.85,134.77,207.5]
[1740605677731,1.0,134.84,134.77,125.1]
[1740605677933,7.97126596,134.85,134.77,125.1]
[1740605677934,1.0,134.82,134.77,125.1]
[1740605678134,1.0,134.79,134.77,125.1]
[1740605678309,1.0,134.78,134.73,6.5661]
[1740605678632,1.0,134.78,134.71,0.9336543]
[1740605678844,1.0,134.8,134.71,0.9336543]
[1740605679041,1.0,134.86,134.73,0.14216157]
[1740605679208,1.0,134.8,134.72,135.69300039]
[1740605679404,1.0,134.77,134.71,0.9336543]
[1740605679605,2.0,134.83,134.72,1.55841706]
[1740605679812,1.0,134.83,134.73,18.64964886]
[1740605680022,1.0,134.81,134.74,10.4]
[1740605680237,1.0,134.83,134.74,10.4]
[1740605680730,1.0,134.83,134.74,228.49300039]
[1740605681040,1.0,134.84,134.74,228.49300039]
[1740605681210,1.0,134.83,134.74,228.49300039]
[1740605681407,1.0,134.78,134.71,0.9336543]
[1740605681742,1.0,134.77,134.71,0.9336543]
[1740605681908,83.9,134.79,134.71,0.9336543]
[1740605682111,1.0,134.77,134.71,0.9336543]
[1740605682324,2.0,134.77,134.71,0.9336543]
[1740605682526,2.0,134.79,134.71,0.9336543]
[1740605682732,1.0,134.81,134.71,220.5848322]
[1740605682933,12.44,134.83,134.72,20.20754067]
[1740605683107,2.0,134.84,134.72,20.20754067]
[1740605683307,1.0,134.82,134.72,219.6508922]
[1740605683510,1.0,134.82,134.73,1.55792707]
[1740605683744,1.0,134.84,134.74,18.64964886]
[1740605683920,2.0,134.84,134.73,343.23300039]
[1740605684118,2.0,134.83,134.73,343.23300039]
[1740605684319,1.0,134.82,134.73,343.23300039]
[1740605684638,1.0,134.84,134.74,18.64964886]
[1740605684841,2.0,134.86,134.74,18.64964886]
[1740605685017,1.0,134.85,134.74,1.55751856]
[1740605685215,2.0,134.86,134.74,1.55751856]
[1740605685429,84.9,134.87,134.75,18.64964886]
[1740605685619,1.0,134.85,134.76,1.55723786]
[1740605685814,1.0,134.88,134.76,219.65023825]
[1740605686037,10.42,134.89,134.78,6.4551]
[1740605686212,10.42,134.89,134.79,1.5569749]
[1740605686537,84.9,134.91,134.79,219.64997529]
[1740605686720,0.063,134.82,134.8,1.55683292]
[1740605687033,2.0,134.92,134.81,18.64964886]
[1740605687232,1.0,134.92,134.82,1.5566666]
[1740605687413,2.0,134.93,134.83,10.38]
[1740605687616,2.0,134.93,134.83,11.93643149]
[1740605687934,94.28,134.94,134.83,230.0294739]
[1740605688123,1.0,134.93,134.83,228.47300039]
[1740605688321,94.28,134.94,134.83,228.47300039]
[1740605688522,1.0,134.93,134.83,228.47300039]
[1740605689726,1.0,134.92,134.83,228.47300039]
[1740605690038,2.0,134.93,134.83,228.47300039]
[1740605690248,1.0,134.93,134.83,228.47300039]
[1740605690433,2.0,134.93,134.83,228.47300039]
[1740605690736,82.9,134.94,134.84,18.64964886]
[1740605690942,18.64964886,134.98,134.84,238.29930256]
[1740605690943,2.0,134.96,134.84,238.29930256]
[1740605691149,1.0,134.94,134.85,125.12]
[1740605691321,1.0,134.94,134.85,126.67633088]
[1740605691520,1.0,134.94,134.85,125.12]
[1740605691822,1.0,134.91,134.85,125.12]
[1740605692032,1.0,134.93,134.85,125.12]
[1740605692232,1.0,134.95,134.85,343.21300039]
[1740605692443,2.0,134.94,134.85,343.21300039]
[1740605692640,1.0,134.92,134.85,343.21300039]
[1740605692843,2.0,134.94,134.85,343.21300039]
[1740605693019,1.0,134.95,134.85,343.21300039]
[1740605693219,83.9,134.96,134.86,1.55632511]
[1740605693435,1.0,134.94,134.86,1.55632511]
[1740605694138,83.9,134.96,134.86,218.09300039]
[1740605694439,2.0,134.94,134.86,218.09300039]
[1740605694821,1.0,134.95,134.86,218.09300039]
[1740605695023,1.0,134.98,134.86,218.09300039]
[1740605695243,83.9,134.99,134.88,18.64964886]
[1740605695540,1.0,134.99,134.9,6.6424]
[1740605695723,1.0,135.0,134.9,224.73540039]
[1740605695918,83.9,135.01,134.91,1.55574012]
[1740605695919,82.9,135.01,134.91,1.55574012]
[1740605696120,83.9,135.01,134.91,1.55574012]
[1740605696447,82.9,135.01,134.91,1.55574012]
[1740605696757,1.0,135.03,134.92,18.64964886]
[1740605696926,2.0,135.03,134.93,1.55538681]
[1740605697127,1.063,135.04,134.93,11.75538681]
[1740605697340,2.063,135.04,134.94,18.64964886]
[1740605697626,1.0,135.03,134.94,218.09300039]
[1740605697837,1.0,135.02,134.94,218.09300039]
[1740605698237,0.063,135.04,134.95,18.64964886]
[1740605698545,0.063,135.04,134.95,238.29818074]
[1740605698761,0.063,135.04,134.96,1.55503646]
[1740605699341,0.063,135.04,134.97,18.64964886]
[1740605699554,0.063,135.04,134.98,1.55488522]
[1740605699723,0.063,135.04,134.98,219.64788561]
[1740605700035,0.063,135.04,134.98,218.09300039]
[1740605700230,1.0,135.02,134.96,207.44]
[1740605700443,0.063,135.04,134.96,207.44]
[1740605700649,0.063,135.04,134.96,343.13300039]
[1740605700846,0.063,135.04,134.97,18.64964886]
[1740605701039,1.063,135.04,134.96,207.44]
[1740605701238,1.0,134.99,134.96,207.44]
[1740605701441,1.0,134.96,134.93,82.4]
[1740605701636,1.0,134.97,134.9,89.0424]
[1740605701835,83.9,135.01,134.91,1.55603224]
[1740605702036,1.0,134.99,134.91,83.95603224]
[1740605702342,1.0,134.93,134.88,125.0]
[1740605702552,2.0,134.94,134.85,141.91640039]
[1740605702726,1.0,134.93,134.85,224.31640039]
[1740605702923,0.76697685,134.99,134.87,0.14216157]
[1740605703129,1.0,134.98,134.88,30.42530514]
[1740605703326,2.0,134.94,134.85,224.31640039]
[1740605703533,1.0,134.88,134.8,83.9762]
[1740605703757,1.0,134.86,134.79,6.2234]
[1740605704357,82.9,134.91,134.79,6.2234]
[1740605704358,1.0,134.88,134.79,6.2234]
[1740605704651,1.0,134.88,134.8,10.26]
[1740605704824,2.0,134.88,134.8,10.26]
[1740605705025,2.0,134.86,134.8,10.26]
[1740605705225,1.0,134.85,134.79,6.2234]
[1740605705457,2.0,134.83,134.76,10.28]
[1740605705629,1.0,134.8,134.77,0.02405268]
[1740605705959,1.0,134.83,134.77,0.02405268]
[1740605706156,1.0,134.86,134.77,0.02405268]
[1740605706333,10.28,134.88,134.77,135.71705307]
[1740605706530,1.0,134.93,134.8,6.3781]
[1740605706727,1.0,134.92,134.81,20.20628975]
[1740605706951,1.0,134.95,134.82,125.06]
[1740605707252,2.0,134.96,134.84,18.64964886]
[1740605707426,2.0,134.97,134.86,18.64964886]
[1740605707636,1.0,134.98,134.87,1.55605478]
[1740605707829,2.0,134.97,134.87,1.55605478]
[1740605708030,2.0,134.97,134.87,137.24905517]
[1740605708031,1.0,134.96,134.87,137.24905517]
[1740605708246,1.0,134.94,134.87,135.69300039]
[1740605708437,1.0,134.94,134.86,135.69300039]
[1740605708638,1.0,134.92,134.86,146.01300039]
[1740605708946,1.0,134.92,134.86,10.32]
[1740605709151,1.0,134.9,134.86,10.32]
[1740605709333,2.0,134.9,134.82,271.07300039]
[1740605709530,1.0,134.89,134.82,271.07300039]
[1740605709751,1.0,134.88,134.82,271.07300039]
[1740605709939,1.0,134.87,134.82,135.38]
[1740605710140,1.0,134.85,134.82,125.06]
[1740605710645,1.0,134.9,134.79,10.32]
[1740605710952,1.0,134.87,134.79,228.41300039]
[1740605711250,1.0,134.85,134.79,228.41300039]
[1740605711550,1.0,134.84,134.79,10.32]
[1740605711763,1.0,134.82,134.77,0.03]
[1740605711928,83.9,134.85,134.77,0.03]
[1740605712131,1.0,134.9,134.79,18.64964886]
[1740605712467,1.0,134.89,134.8,1.55678293]
[1740605712629,1.0,134.92,134.8,218.09300039]
[1740605712630,2.0,134.88,134.8,218.09300039]
[1740605712830,1.0,134.88,134.8,218.09300039]
[1740605713026,1.0,134.87,134.8,218.09300039]
[1740605713456,1.0,134.84,134.77,218.12300039]
[1740605714036,1.0,134.84,134.77,228.44300039]
[1740605714255,1.0,134.85,134.77,228.44300039]
[1740605714570,1.0,134.81,134.77,218.12300039]
[1740605714854,1.0,134.78,134.77,0.03]
[1740605715038,1.0,134.78,134.71,229.38665469]
[1740605715242,1.0,134.79,134.71,219.02665469]
[1740605715443,1.0,134.77,134.71,219.02665469]
[1740605715639,1.0,134.81,134.72,1.55837223]
[1740605715937,1.0,134.81,134.72,219.65076023]
[1740605716147,1.0,134.8,134.72,82.4]
[1740605716345,1.0,134.77,134.72,82.4]
[1740605716634,1.0,134.86,134.72,82.4]
[1740605716635,1.0,134.83,134.73,18.64964886]
[1740605716855,1.0,134.85,134.74,1.55766145]
[1740605717154,1.0,134.85,134.75,18.64964886]
[1740605717354,93.3,134.92,134.75,18.64964886]
[1740605717355,1.0,134.86,134.76,11.9773027]
[1740605717555,1.0,134.86,134.77,18.64964886]
[1740605717743,1.0,134.86,134.78,1.55711187]
[1740605718059,1.0,134.87,134.79,18.64964886]
[1740605718373,1.0,134.87,134.79,236.74264925]
[1740605718663,1.0,134.94,134.83,18.64964886]
[1740605718836,0.063,134.95,134.84,11.97630919]
[1740605719037,0.063,134.95,134.85,18.64964886]
[1740605719234,0.063,134.95,134.87,18.64964886]
[1740605719449,0.063,134.95,134.89,18.64964886]
[1740605719651,0.063,134.95,134.89,218.09300039]
[1740605720161,0.063,134.95,134.9,11.95597618]
[1740605720355,0.063,134.95,134.92,6.0357]
[1740605720554,0.063,134.95,134.92,141.72870039]
[1740605720754,0.063,134.95,134.9,218.09300039]
[1740605721256,0.063,134.95,134.91,1.55579725]
[1740605721434,0.063,134.95,134.91,219.64879764]
[1740605721642,0.063,134.95,134.91,218.09300039]
[1740605721854,0.063,134.95,134.89,135.69300039]
[1740605722162,1.0,134.91,134.88,125.1]
[1740605722370,1.0,134.9,134.85,10.42]
[1740605722567,1.0,134.87,134.82,6.0371]
[1740605722943,1.0,134.89,134.82,6.0371]
[1740605723158,1.0,134.86,134.81,135.69300039]
[1740605723358,1.0,134.85,134.8,125.06]
[1740605723570,1.0,134.82,134.78,10.42]
[1740605723746,1.0,134.82,134.75,135.72300039]
[1740605723950,10.44,134.88,134.75,135.72300039]
[1740605723951,1.0,134.81,134.75,135.72300039]
[1740605724172,2.0,134.83,134.75,135.72300039]
[1740605724546,1.0,134.85,134.76,20.20718086]
[1740605724849,2.0,134.87,134.76,219.65053239]
[1740605725155,1.0,134.86,134.77,1.55701659]
[1740605725353,1.0,134.83,134.76,218.09300039]
[1740605725563,1.0,134.84,134.76,218.09300039]
[1740605725876,83.9,134.88,134.77,1.5575876]
[1740605726172,1.0,134.84,134.77,218.09300039]
[1740605726545,1.0,134.83,134.77,82.4]
[1740605726763,1.0,134.86,134.78,1.55742129]
[1740605727068,1.0,134.88,134.78,238.30007054]
[1740605727239,1.0,134.88,134.79,20.20637429]
[1740605727444,2.0,134.89,134.8,10.42]
[1740605727644,1.0,134.87,134.81,1.55677756]
[1740605727843,1.0,134.87,134.81,218.09300039]
[1740605728076,1.0,134.85,134.81,218.09300039]
[1740605728459,1.0,134.84,134.81,218.09300039]
[1740605728655,1.0,134.82,134.81,82.4]
[1740605729057,1.0,134.82,134.8,10.42]
[1740605729576,1.0,134.84,134.8,10.42]
[1740605730471,1.0,134.83,134.8,10.42]
[1740605730771,1.0,134.86,134.8,10.42]
[1740605731067,1.0,134.85,134.8,10.42]
[1740605731274,1.0,134.86,134.8,10.42]
[1740605731768,1.0,134.86,134.8,228.51300039]
[1740605732579,1.0,134.88,134.8,228.51300039]
[1740605732769,1.0,134.91,134.81,1.55711405]
[1740605733081,82.9,134.94,134.83,18.64964886]
[1740605733082,84.9,134.94,134.83,18.64964886]
[1740605733257,1.063,134.95,134.85,18.64964886]
[1740605733458,2.0,134.94,134.86,11.93608612]
[1740605733770,1.063,134.95,134.86,230.02908651]
[1740605733983,1.0,134.94,134.86,228.47300039]
[1740605734184,1.063,134.95,134.86,228.47300039]
[1740605734368,1.0,134.94,134.86,228.47300039]
[1740605735079,1.0,134.93,134.87,1.55605725]
[1740605735269,1.0,134.89,134.84,10.36]
[1740605735457,1.0,134.9,134.85,1.55663713]
[1740605735661,1.0,134.9,134.85,219.64963752]
[1740605735863,1.0,134.9,134.85,218.09300039]
[1740605736276,1.0,134.91,134.85,135.69300039]
[1740605736476,1.0,134.94,134.85,219.64943793]
[1740605736785,1.0,134.94,134.85,218.09300039]
[1740605736979,1.0,134.93,134.86,1.55609894]
[1740605737183,2.0,134.94,134.86,1.55609894]
[1740605737378,1.0,134.94,134.86,1.55609894]
[1740605737577,2.0,134.93,134.86,1.55609894]
[1740605737780,2.063,134.95,134.86,1.55609894]
[1740605737980,1.063,134.95,134.87,18.64964886]
[1740605738293,1.0,134.94,134.88,1.5558823]
[1740605738494,1.063,134.95,134.88,219.64888269]
[1740605738788,1.063,134.95,134.88,218.09300039]
[1740605738958,2.063,134.95,134.88,218.09300039]
[1740605739161,0.063,134.95,134.88,218.09300039]
[1740605739570,1.063,134.95,134.88,218.09300039]
[1740605739771,0.063,134.95,134.89,20.2055577]
[1740605739976,0.063,134.95,134.9,10.26]
[1740605740188,0.063,134.95,134.94,18.64964886]
[1740605740487,0.063,135.0,134.94,363.35748383]
[1740605740683,0.063,135.0,134.94,361.80264925]
[1740605741677,0.063,135.0,134.96,18.64964886]
[1740605742003,0.063,135.0,134.97,11.75455329]
[1740605742158,0.063,135.0,134.97,229.84755368]
[1740605742363,0.063,135.0,134.97,228.29300039]
[1740605742558,0.063,135.0,134.99,18.64964886]
[1740605743164,0.063,135.0,134.99,218.09300039]
[1740605743371,0.063,135.0,134.99,82.4]
[1740605743983,0.063,135.0,134.99,236.74264925]
[1740605744391,0.063,135.0,134.99,218.09300039]
[1740605745064,0.063,135.0,134.95,10.16]
[1740605745284,2.0,134.99,134.95,82.4]
[1740605745464,1.0,134.99,134.95,82.4]
[1740605745664,1.063,135.0,134.95,82.4]
[1740605745665,2.063,135.0,134.95,82.4]
[1740605745865,1.0,134.99,134.95,82.4]
[1740605746389,0.063,135.0,134.95,83.95552113]
[1740605746998,0.063,135.0,134.96,18.64964886]
[1740605747204,0.063,135.0,134.97,1.55497437]
[1740605747883,0.063,135.0,134.97,219.64797476]
[1740605748098,0.063,135.0,134.98,18.64964886]
[1740605748398,0.063,135.0,134.99,1.5545616]
[1740605748567,0.063,135.0,134.99,20.20421046]
[1740605748764,0.063,135.0,134.99,238.29721085]
[1740605748969,0.063,135.0,134.99,236.74264925]
[1740605751176,0.063,135.0,134.99,218.09300039]
[1740605751399,0.063,135.0,134.99,82.4]
[1740605752293,0.063,135.0,134.99,236.74264925]
[1740605752679,0.063,135.0,134.99,237.31129553]
[1740605752884,0.063,135.0,134.99,236.74264925]
[1740605753290,0.063,135.0,134.99,237.02697239]
[1740605753494,0.063,135.0,134.99,236.74264925]
[1740605754193,0.063,135.0,134.99,237.31129553]
[1740605754369,0.063,135.04,134.99,237.31129553]
[1740605754370,0.063,135.04,135.0,18.64964886]
[1740605754571,0.063,135.04,135.01,1.55402416]
[1740605754776,0.063,135.04,135.03,18.64964886]
[1740605755001,0.063,135.04,135.03,238.29678384]
[1740605755205,0.063,135.04,135.03,236.74264925]
[1740605756083,0.063,135.04,135.03,218.09300039]
[1740605757393,0.063,135.04,135.03,236.74264925]
[1740605757969,0.063,135.04,135.03,237.31129553]
[1740605758883,0.063,135.04,135.03,236.74264925]
[1740605759483,0.063,135.04,135.03,218.09300039]
[1740605760099,1.0,135.03,135.02,124.92]
[1740605760294,1.0,135.03,135.02,124.8548]
[1740605760493,2.0,135.03,135.01,82.4]
[1740605760695,0.063,135.04,135.0,147.18773648]
[1740605761003,0.063,135.04,135.01,82.4]
[1740605761200,0.063,135.04,135.02,1.55446353]
[1740605761409,1.0,135.03,135.01,82.4]
[1740605761585,1.0,135.03,135.01,135.69300039]
[1740605761782,1.063,135.04,135.01,135.69300039]
[1740605761985,0.063,135.04,135.01,137.24782156]
[1740605762378,0.063,135.04,135.02,18.64964886]
[1740605762716,0.063,135.04,135.03,20.20371233]
[1740605763010,0.063,135.04,135.03,238.29671272]
[1740605763211,0.063,135.04,135.03,218.09300039]
[1740605763433,1.0,135.02,134.96,218.09300039]
[1740605763582,1.0,135.01,134.97,9.94]
[1740605763781,2.0,135.0,134.97,82.4]
[1740605764193,1.0,135.0,134.97,82.4]
[1740605764395,1.0,135.01,134.97,82.4]
[1740605764584,1.0,135.03,134.98,1.55503391]
[1740605764787,0.063,135.04,134.99,18.64964886]
[1740605765001,0.063,135.04,135.01,18.64964886]
[1740605765192,0.063,135.04,135.02,1.55430086]
[1740605765394,0.063,135.04,135.02,219.64730125]
[1740605765721,0.063,135.04,135.03,18.64964886]
[1740605765892,0.063,135.04,135.03,82.4]
[1740605766095,0.063,135.04,135.03,218.09300039]
[1740605766917,0.063,135.04,135.03,236.74264925]
[1740605767606,2.063,135.04,135.03,82.4]
[1740605767917,1.063,135.04,135.03,82.4]
[1740605768117,2.063,135.04,135.03,82.4]
[1740605768327,1.0,135.0,134.94,365.29300039]
[1740605768500,1.0,135.0,134.97,9.98]
[1740605768689,2.0,134.98,134.97,228.07300039]
[1740605768892,2.0,134.98,134.97,218.09300039]
[1740605769314,2.0,134.95,134.94,124.9]
[1740605769518,2.0,134.93,134.91,82.4]
[1740605769727,1.0,134.97,134.92,18.64964886]
[1740605769930,1.0,134.94,134.92,236.74264925]
[1740605770130,2.0,134.97,134.92,236.74264925]
[1740605770336,2.0,135.0,134.94,18.64964886]
[1740605770495,1.0,135.0,134.94,236.74264925]
[1740605770799,1.0,134.97,134.95,1.5552948]
[1740605770995,1.0,134.97,134.95,219.64829519]
[1740605771215,1.0,134.97,134.95,218.09300039]
[1740605771934,1.0,134.96,134.95,218.09300039]
[1740605772230,1.0,134.97,134.95,218.09300039]
[1740605773027,1.0,134.96,134.95,218.09300039]
[1740605773231,2.0,134.94,134.93,82.4]
[1740605773532,2.0,134.93,134.91,0.03]
[1740605773737,2.0,134.96,134.92,18.64964886]
[1740605773898,0.063,135.0,134.92,248.23824965]
[1740605773899,1.0,134.98,134.92,248.23824965]
[1740605774100,0.063,135.0,134.94,18.64964886]
[1740605774298,0.063,135.0,134.97,0.56864628]
[1740605774614,0.063,135.0,134.99,19.21829514]
[1740605774820,0.063,135.0,134.99,236.74264925]
[1740605775022,0.063,135.0,134.99,237.31129553]
[1740605775333,0.063,135.0,134.99,236.74264925]
[1740605775631,1.063,135.0,134.99,82.4]
[1740605775937,2.063,135.0,134.99,82.4]
[1740605776103,0.063,135.0,134.99,219.64811118]
[1740605776302,0.063,135.0,134.99,259.61129553]
[1740605776531,0.063,135.04,135.0,47.89769514]
[1740605776731,0.063,135.04,135.02,19.21829514]
[1740605776925,0.063,135.04,135.03,20.20375071]
[1740605777234,0.063,135.04,135.03,238.2967511]
[1740605777440,0.063,135.04,135.03,236.74264925]
[1740605777823,0.063,135.04,135.03,237.31129553]
[1740605778022,0.063,135.04,135.03,236.74264925]
[1740605778816,0.063,135.08,135.03,237.31129553]
[1740605779108,0.063,135.08,135.07,41.51829514]
[1740605779314,0.063,135.08,135.07,271.12451901]
[1740605779537,0.063,135.08,135.07,269.57129553]
[1740605779722,0.063,135.09,135.08,41.51829514]
[1740605780033,0.063,135.09,135.08,166.39829514]
[1740605780239,0.063,135.09,135.08,144.09829514]
[1740605780614,0.063,135.09,135.08,166.39829514]
[1740605780831,0.9036543,135.1,135.09,48.00659514]
[1740605781016,0.9036543,135.1,135.09,27.25956316]
[1740605781210,0.063,135.14,135.12,0.56864628]
[1740605781413,2.063,135.14,135.13,9.96]
[1740605781613,2.0,135.13,135.12,82.4]
[1740605781912,2.0,135.09,135.08,124.88]
[1740605782128,1.0,135.05,135.04,218.09300039]
[1740605782437,1.0,135.07,135.04,135.69300039]
[1740605782609,1.0,135.06,135.05,18.64964886]
[1740605782811,1.0,135.06,135.05,135.69300039]
[1740605783030,1.0,135.06,134.99,16.5087]
[1740605783031,2.0,135.02,134.99,228.05300039]
[1740605783210,1.0,135.03,135.0,1.55484354]
[1740605783407,1.0,135.04,135.0,1.55454274]
[1740605783624,1.0,135.08,135.01,19.21829514]
[1740605783811,1.0,135.09,135.03,18.64964886]
[1740605784018,1.0,135.07,135.05,18.64964886]
[1740605784230,2.0,135.1,135.05,246.72264925]
[1740605784431,2.0,135.08,135.06,1.55411266]
[1740605784738,1.0,135.03,135.01,218.09300039]
[1740605784936,1.0,135.06,135.02,1.55471207]
[1740605785142,1.0,135.09,135.02,219.64771246]
[1740605785339,1.0,135.06,135.02,218.09300039]
[1740605785644,1.0,135.09,135.04,18.64964886]
[1740605785938,1.0,135.08,135.05,1.55397955]
[1740605786149,2.0,135.05,135.04,82.4]
[1740605786335,2.0,135.04,135.03,135.69300039]
[1740605786840,2.0,135.05,135.03,218.09300039]
[1740605787047,1.0,135.09,135.05,18.64964886]
[1740605787226,2.0,135.08,135.06,11.53404147]
[1740605787428,1.0,135.09,135.06,11.53404147]
[1740605787728,0.063,135.1,135.07,41.51829514]
[1740605787928,0.063,135.14,135.09,41.51829514]
[1740605788134,0.063,135.14,135.13,18.64964886]
[1740605788334,0.063,135.14,135.13,248.25557415]
[1740605788543,0.063,135.14,135.13,246.70264925]
[1740605789446,2.063,135.14,135.13,82.4]
[1740605789653,0.063,135.14,135.13,82.4]
[1740605789953,1.063,135.14,135.13,219.64636873]
[1740605790246,0.063,135.14,135.13,236.74264925]
[1740605790446,1.063,135.14,135.13,236.74264925]
[1740605790624,2.063,135.14,135.13,218.09300039]
[1740605790818,2.0,135.1,135.09,10.0]
[1740605791117,2.0,135.09,135.08,124.86]
[1740605791545,1.0,135.06,135.05,10.0]
[1740605791753,1.0,135.06,135.05,228.09300039]
[1740605791932,2.0,135.06,135.05,82.4]
[1740605792134,1.0,135.06,135.05,82.4]
[1740605792341,2.0,135.06,135.05,82.4]
[1740605792830,1.0,135.02,135.01,228.09300039]
[1740605793038,1.0,135.05,135.02,18.64964886]
[1740605793243,2.0,135.04,135.02,219.64744278]
[1740605793445,2.0,135.04,135.02,218.09300039]
[1740605793643,1.0,135.06,135.03,18.64964886]
[1740605793955,3.6683,135.14,135.02,218.09300039]
[1740605793956,1.0,135.04,135.02,218.09300039]
[1740605794120,1.0,135.05,135.02,218.09300039]
[1740605794326,1.0,135.05,135.03,1.55438494]
[1740605794527,1.0,135.05,135.02,218.09300039]
[1740605795027,1.0,135.05,135.03,18.64964886]
[1740605795555,1.0,135.06,135.03,18.64964886]
[1740605795744,1.0,135.06,135.02,218.09300039]
[1740605795745,2.0,135.08,135.05,18.64964886]
[1740605796044,2.0,135.1,135.07,18.64964886]
[1740605796248,1.0,135.1,135.07,246.68264925]
[1740605796549,1.0,135.13,135.09,18.64964886]
[1740605796760,1.0,135.12,135.11,18.64964886]
[1740605797061,2.0,135.08,135.07,92.34]
[1740605797356,2.0,135.08,135.07,82.4]
[1740605797550,2.0,135.06,135.05,0.03]
[1740605797752,1.0,135.06,135.05,0.03]
[1740605797957,2.0,135.08,135.06,18.64964886]
[1740605798133,1.0,135.1,135.06,238.29660361]
[1740605798335,1.0,135.11,135.06,259.06264925]
[1740605798658,1.0,135.12,135.08,40.96964886]
[1740605798841,1.0,135.12,135.1,18.64964886]
[1740605799033,1.0,135.13,135.11,20.20314955]
[1740605799875,0.063,135.14,135.12,40.96964886]
[1740605800147,0.063,135.14,135.13,1.5530528]
[1740605800336,0.063,135.14,135.13,260.61570205]
[1740605800534,0.063,135.14,135.13,259.63129553]
[1740605800739,0.063,135.18,135.16,0.56864628]
[1740605800952,0.063,135.18,135.17,58.94760814]
[1740605801265,0.063,135.18,135.17,277.04060853]
[1740605801552,0.9036543,135.21,135.2,41.53829514]
[1740605801728,0.9036543,135.21,135.2,261.18293012]
[1740605802047,0.9036543,135.21,135.2,259.63129553]
[1740605803224,0.9036543,135.21,135.2,237.31129553]
[1740605804832,0.9036543,135.21,135.2,236.74264925]
[1740605805032,1.9036543,135.21,135.2,218.09300039]
[1740605805232,2.9036543,135.21,135.2,218.09300039]
[1740605806452,2.9036543,135.21,135.2,82.4]
[1740605807150,2.9036543,135.21,135.17,227.93300039]
[1740605807356,1.0,135.18,135.17,227.93300039]
[1740605807663,1.0,135.18,135.17,246.58264925]
[1740605808041,2.0,135.19,135.17,246.58264925]
[1740605808249,1.0,135.2,135.18,20.20229779]
[1740605808450,0.03,135.19,135.18,20.20229779]